bitfinex/quotes_ETHUSD_20250326
["timestamp","ask_amount","ask_price","bid_price","bid_amount"]
[1742958396805,0.93421503,2056.0,2055.7,4.86442]
[1742958398410,0.93421503,2056.0,2055.7,9.72876]
[1742958399020,0.93421503,2056.0,2055.8,4.86426]
[1742958399219,0.93421503,2056.0,2055.7,4.86447]
[1742958399413,0.93421503,2056.0,2055.7,5.433857]
[1742958399612,3.93421503,2056.0,2055.3,0.8299]
[1742958399832,0.7703,2055.9,2055.5,4.86484]
[1742958400013,0.7703,2055.9,2055.6,4.86465]
[1742958400214,0.7703,2055.9,2055.5,4.86496]
[1742958400215,0.141227,2055.8,2055.5,4.86496]
[1742958400414,0.141227,2055.8,2055.4,4.86513]
[1742958400743,0.141227,2055.8,2055.5,5.920888]
[1742958400912,0.141227,2055.8,2055.6,4.86474]
[1742958401638,0.141227,2055.8,2055.7,4.86452]
[1742958402207,3.0,2056.0,2055.7,4.86452]
[1742958402411,0.141227,2055.8,2055.7,4.86452]
[1742958402622,3.0,2056.0,2055.7,6.0260408]
[1742958402942,3.0,2056.0,2055.6,5.69454]
[1742958403141,0.14169332,2055.9,2055.7,4.86448]
[1742958404642,0.14169332,2055.9,2055.8,4.86428]
[1742958406644,4.82069332,2055.9,2055.8,4.86428]
[1742958409848,4.82069332,2055.9,2055.7,4.86448]
[1742958410143,4.82069332,2055.9,2055.7,7.4759968]
[1742958410356,4.82069332,2055.9,2055.7,4.86448]
[1742958410529,4.82069332,2055.9,2055.7,19.36448]
[1742958410918,4.82069332,2055.9,2055.7,4.86448]
[1742958413845,0.14169332,2055.9,2055.8,4.86428]
[1742958415554,4.679,2056.0,2055.8,19.36428]
[1742958415755,0.14127939,2055.9,2055.8,19.36428]
[1742958415930,0.14127939,2055.9,2055.8,21.22955237]
[1742958416260,0.14127939,2055.9,2055.8,6.72955237]
[1742958422134,0.14127939,2055.9,2055.8,1.86527237]
[1742958422332,0.14127939,2055.9,2055.6,9.72939]
[1742958422743,0.14127939,2055.9,2055.7,4.86451]
[1742958425866,0.14127939,2055.9,2055.8,4.86428]
[1742958426056,0.14127939,2055.9,2055.7,5.61907]
[1742958426257,0.14127939,2055.9,2055.8,14.5]
[1742958426635,0.14127939,2055.9,2055.7,5.61907]
[1742958426836,0.14127939,2055.9,2055.7,6.7730568]
[1742958427062,0.14127939,2055.9,2055.8,19.36428]
[1742958427640,0.14127939,2055.9,2055.8,14.5]
[1742958427970,0.14127939,2055.9,2055.7,4.86442]
[1742958428464,0.14127939,2055.9,2055.7,24.22874]
[1742958428632,0.14127939,2055.9,2055.7,26.8326788]
[1742958429769,0.14127939,2055.9,2055.8,4.86428]
[1742958431940,0.14127939,2055.9,2055.7,4.86432]
[1742958436282,0.14127939,2055.9,2055.8,4.86428]
[1742958437282,0.14127939,2055.9,2055.8,5.68848]
[1742958437583,4.678,2056.0,2055.9,4.86404]
[1742958437748,4.80483296,2056.0,2055.9,6.1725993]
[1742958438456,4.80483296,2056.0,2055.9,4.86404]
[1742958439880,4.80483296,2056.0,2055.9,19.36404]
[1742958440109,4.80483296,2056.0,2055.9,14.5]
[1742958440294,4.80483296,2056.0,2055.8,11.40082993]
[1742958440574,4.80483296,2056.0,2055.9,6.00412299]
[1742958440980,4.678,2056.0,2055.9,6.00412299]
[1742958441283,4.80566076,2056.0,2055.9,6.00412299]
[1742958442974,4.678,2056.0,2055.9,6.00412299]
[1742958443168,4.80566076,2056.0,2055.9,6.00412299]
[1742958443375,4.678,2056.0,2055.9,6.00412299]
[1742958443987,4.80549145,2056.0,2055.9,6.00412299]
[1742958444175,4.80549145,2056.0,2055.9,20.50412299]
[1742958444377,0.12749145,2056.0,2055.9,20.50412299]
[1742958445055,0.12749145,2056.0,2055.9,6.00412299]
[1742958445385,0.2549829,2056.0,2055.9,6.00412299]
[1742958445568,0.2549829,2056.0,2055.9,20.50412299]
[1742958445754,0.12749145,2056.0,2055.9,20.50412299]
[1742958447505,0.12749145,2056.0,2055.9,21.83972299]
[1742958448897,0.12749145,2056.0,2055.9,6.00412299]
[1742958449097,0.12749145,2056.0,2055.9,6.78972299]
[1742958449300,0.2551334,2056.0,2055.9,6.78972299]
[1742958449498,0.12749145,2056.0,2055.9,21.28972299]
[1742958449687,0.2551334,2056.0,2055.9,21.28972299]
[1742958449987,0.12749145,2056.0,2055.9,21.28972299]
[1742958452490,0.12749145,2056.0,2055.9,20.50412299]
[1742958452809,0.12749145,2056.0,2055.9,6.00412299]
[1742958453169,0.12749145,2056.0,2055.9,20.50412299]
[1742958453813,0.12749145,2056.0,2055.9,6.00412299]
[1742958454102,0.25539673,2056.0,2055.9,6.00412299]
[1742958454262,0.12749145,2056.0,2055.9,6.00412299]
[1742958454462,0.25539673,2056.0,2055.9,6.00412299]
[1742958454664,0.12749145,2056.0,2055.9,6.00412299]
[1742958455721,0.12749145,2056.0,2055.8,4.8641]
[1742958455994,0.12749145,2056.0,2055.9,4.86404]
[1742958456185,4.80349145,2056.0,2055.9,4.86404]
[1742958456402,4.93088841,2056.0,2055.9,4.86404]
[1742958456773,4.80218892,2056.0,2055.9,4.86404]
[1742958456974,4.676,2056.0,2055.9,4.86404]
[1742958460125,4.80198626,2056.0,2055.9,4.86404]
[1742958460300,0.12598626,2056.0,2055.9,7.852145]
[1742958462587,4.676,2056.1,2055.9,4.86404]
[1742958462588,5.4644,2056.1,2055.9,4.86404]
[1742958462804,0.12598626,2056.0,2055.9,4.86404]
[1742958463895,0.12598626,2056.0,2055.8,4.86427]
[1742958464101,0.12598626,2056.0,2055.8,9.72854]
[1742958464285,0.12598626,2056.0,2055.8,4.86417]
[1742958464485,0.12598626,2056.0,2055.8,4.86413]
[1742958464717,0.12598626,2056.0,2055.9,4.86404]
[1742958466951,0.12598626,2056.0,2055.8,4.86426]
[1742958467251,0.12598626,2056.0,2055.8,9.72836]
[1742958467657,0.12598626,2056.0,2055.8,4.8641]
[1742958468349,0.12598626,2056.0,2055.8,9.72826]
[1742958469607,0.12598626,2056.0,2055.9,4.86404]
[1742958470253,0.12598626,2056.0,2055.9,5.836854]
[1742958470540,4.676,2056.0,2055.9,5.836854]
[1742958470746,4.80133544,2056.0,2055.9,5.836854]
[1742958473262,4.80133544,2056.0,2055.9,4.86404]
[1742958483091,4.80133544,2056.0,2055.8,9.72821]
[1742958484291,4.80133544,2056.0,2055.8,4.8641]
[1742958484462,5.60033544,2056.0,2055.8,4.8641]
[1742958484663,5.60033544,2056.0,2055.8,9.72824]
[1742958484995,5.60033544,2056.0,2055.9,4.86404]
[1742958485223,4.80133544,2056.0,2055.9,4.86404]
[1742958488672,4.80033544,2056.0,2055.9,4.86404]
[1742958489125,0.12533544,2056.0,2055.9,7.0459086]
[1742958489288,0.12533544,2056.0,2055.9,6.99727056]
[1742958489490,4.675,2056.4,2056.2,4.86322]
[1742958489677,4.675,2056.4,2056.2,4.86312]
[1742958490515,4.675,2056.4,2056.2,9.72633]
[1742958490721,4.675,2056.4,2056.2,4.86312]
[1742958492616,5.98343056,2056.4,2056.2,4.86312]
[1742958492775,5.98343056,2056.4,2056.2,5.835788]
[1742958492975,0.1269414,2056.3,2056.2,5.835788]
[1742958494108,0.1269414,2056.3,2056.2,0.972668]
[1742958494414,0.1269414,2056.3,2056.1,4.86356]
[1742958495508,0.9448414,2056.3,2056.1,4.86356]
[1742958495711,0.9448414,2056.3,2056.0,4.86376]
[1742958496176,0.9448414,2056.3,2056.0,9.72742]
[1742958496823,0.9448414,2056.3,2056.1,4.86354]
[1742958497011,0.9448414,2056.3,2056.1,6.01403525]
[1742958497519,0.9448414,2056.3,2056.1,1.15049525]
[1742958497729,0.9448414,2056.3,2056.0,4.86366]
[1742958498805,0.9448414,2056.3,2056.0,9.72732]
[1742958499327,0.9448414,2056.3,2056.1,4.86353]
[1742958500425,0.1269414,2056.3,2056.1,4.86353]
[1742958501627,4.674,2056.2,2056.1,4.86343]
[1742958501826,4.8004751,2056.2,2056.1,6.09372125]
[1742958502923,0.1264751,2056.2,2056.1,6.09372125]
[1742958503129,4.8004751,2056.2,2056.1,6.09372125]
[1742958503330,4.674,2056.2,2056.1,6.09372125]
[1742958503624,0.12431677,2056.2,2056.1,6.09372125]
[1742958503993,4.674,2056.3,2056.2,4.86334]
[1742958505535,4.79927206,2056.3,2056.2,4.86334]
[1742958508498,0.12527206,2056.3,2056.2,4.86334]
[1742958508707,4.79927206,2056.3,2056.2,5.915817]
[1742958508904,4.674,2056.3,2056.2,5.915817]
[1742958509204,4.79927206,2056.3,2056.2,5.915817]
[1742958513338,4.79927206,2056.3,2056.2,5.7084703]
[1742958513339,0.12527206,2056.3,2056.2,5.7084703]
[1742958513510,0.12527206,2056.3,2056.2,6.20984]
[1742958513711,5.4511,2056.8,2056.6,4.86234]
[1742958513935,5.4511,2056.8,2056.6,4.86228]
[1742958514117,0.11462017,2056.7,2056.6,4.86228]
[1742958514323,4.78862017,2056.7,2056.6,6.631263]
[1742958514640,4.674,2056.7,2056.6,6.631263]
[1742958514836,4.78862017,2056.7,2056.6,6.631263]
[1742958517554,4.78862017,2056.7,2056.6,5.834763]
[1742958519013,4.78862017,2056.7,2056.6,6.631263]
[1742958519626,0.11462017,2056.7,2056.6,6.631263]
[1742958519950,4.693,2056.9,2056.8,4.86192]
[1742958520147,4.693,2056.9,2056.8,6.0112173]
[1742958520557,4.693,2056.9,2056.8,4.86192]
[1742958520954,4.80915596,2056.9,2056.8,4.86192]
[1742958521129,4.80915596,2056.9,2056.7,9.72412]
[1742958522058,4.80915596,2056.9,2056.7,4.86205]
[1742958522262,4.80915596,2056.9,2056.7,9.72406]
[1742958522460,4.80915596,2056.9,2056.7,4.86201]
[1742958522619,4.80915596,2056.9,2056.7,9.72399]
[1742958522820,4.80915596,2056.9,2056.8,4.86192]
[1742958524063,7.14362099,2056.9,2056.7,4.86198]
[1742958524620,4.80915596,2056.9,2056.8,4.86192]
[1742958524932,4.80815596,2056.9,2056.8,4.86192]
[1742958525859,4.80815596,2056.9,2056.7,4.86209]
[1742958526354,4.80815596,2056.9,2056.7,4.86195]
[1742958526558,4.80815596,2056.9,2056.4,15.2913]
[1742958526764,4.80815596,2056.9,2056.5,1.52913]
[1742958527810,4.672,2056.8,2056.6,0.7913]
[1742958528076,0.11922488,2056.7,2056.6,0.7913]
[1742958528236,4.672,2056.8,2056.6,0.7913]
[1742958528441,0.11922488,2056.7,2056.6,0.7913]
[1742958528636,0.11922488,2056.7,2056.6,2.473343]
[1742958529166,4.672,2056.8,2056.6,2.473343]
[1742958529366,0.11922488,2056.7,2056.6,2.473343]
[1742958529663,4.672,2056.8,2056.6,2.44485256]
[1742958530080,0.11922488,2056.7,2056.6,2.44485256]
[1742958530372,4.672,2056.8,2056.6,2.44485256]
[1742958530577,0.11922488,2056.7,2056.6,2.44485256]
[1742958531376,4.672,2056.8,2056.6,2.44485256]
[1742958531575,0.11922488,2056.7,2056.6,0.76280956]
[1742958532034,4.672,2056.8,2056.5,0.55]
[1742958532475,4.672,2056.8,2056.4,14.5]
[1742958532476,0.11922488,2056.7,2056.4,14.5]
[1742958532834,5.4678,2056.8,2056.4,14.5]
[1742958533035,0.11885324,2056.6,2056.4,14.5]
[1742958533236,5.4678,2056.8,2056.5,1.52589]
[1742958533539,4.672,2056.8,2056.4,14.5]
[1742958535602,0.11931919,2056.7,2056.4,14.5]
[1742958536560,4.672,2056.8,2056.4,14.5]
[1742958536805,0.11885324,2056.6,2056.4,14.5]
[1742958536956,4.672,2056.8,2056.4,14.5]
[1742958537290,0.11838725,2056.5,2056.4,14.5]
[1742958537503,4.672,2056.8,2056.4,16.19287649]
[1742958537670,0.11838725,2056.5,2056.4,14.5]
[1742958538055,0.11836842,2056.5,2056.4,14.5]
[1742958538286,0.7557,2056.7,2056.4,14.5]
[1742958538487,0.11883441,2056.6,2056.4,14.5]
[1742958539293,0.11883441,2056.6,2056.1,2.65188601]
[1742958539592,0.11883441,2056.6,2056.2,0.60093054]
[1742958539768,0.11883441,2056.6,2056.3,14.5]
[1742958543816,1.42622042,2056.6,2056.3,14.5]
[1742958544564,2.06308601,2056.5,2055.9,2.10188601]
[1742958544994,0.11707903,2056.4,2056.0,1.30738601]
[1742958545205,4.671,2056.3,2056.1,1.30738601]
[1742958545433,4.671,2056.3,2056.1,2.96757461]
[1742958545568,0.11614674,2056.2,2056.1,3.0162037]
[1742958545767,0.11614674,2056.2,2056.1,0.04862909]
[1742958545997,4.671,2056.3,2056.1,14.5]
[1742958546205,0.11598203,2056.2,2056.1,14.5]
[1742958546523,4.671,2056.3,2056.2,4.86334]
[1742958547426,4.671,2056.3,2056.2,5.65784]
[1742958549505,4.671,2056.3,2056.2,20.15784]
[1742958550002,4.671,2056.3,2056.2,19.36334]
[1742958550205,4.671,2056.3,2056.2,22.4811126]
[1742958552609,0.7557,2056.7,2056.2,18.92515861]
[1742958552812,0.8172,2056.9,2056.7,4.86201]
[1742958553111,4.67,2056.8,2056.7,4.86211]
[1742958555909,0.02,2056.9,2056.8,4.86192]
[1742958556214,4.69,2056.9,2056.8,4.86192]
[1742958556608,4.80646032,2056.9,2056.8,4.86192]
[1742958558793,0.13646032,2056.9,2056.8,4.86192]
[1742958558993,4.80646032,2056.9,2056.8,4.86192]
[1742958559580,4.80646032,2056.9,2056.7,19.36213]
[1742958560211,4.80646032,2056.9,2056.7,4.86213]
[1742958560814,1.30738601,2056.8,2056.5,4.86245]
[1742958561114,0.11635835,2056.7,2056.5,4.86245]
[1742958561319,2.10458601,2056.8,2056.5,4.86245]
[1742958561487,0.11635835,2056.7,2056.5,4.86245]
[1742958561675,2.10458601,2056.8,2056.5,4.86245]
[1742958561878,0.11635835,2056.7,2056.5,4.86245]
[1742958562201,0.7972,2056.8,2056.7,4.86215]
[1742958562406,4.69,2056.9,2056.7,4.86215]
[1742958563717,0.1168244,2056.8,2056.7,4.86215]
[1742958563913,0.1168244,2056.8,2056.5,4.86248]
[1742958564141,0.1168244,2056.8,2056.6,4.86219]
[1742958565647,0.1168244,2056.8,2056.7,4.86215]
[1742958567858,0.1168244,2056.8,2056.7,19.36215]
[1742958570664,4.689,2056.9,2056.8,4.86192]
[1742958571252,4.689,2056.9,2056.8,19.36192]
[1742958573752,4.689,2056.9,2056.8,4.86192]
[1742958574167,4.80420228,2056.9,2056.8,4.86192]
[1742958576630,4.56701078,2056.9,2056.8,4.86192]
[1742958578141,4.56701078,2056.9,2056.7,4.8621]
[1742958578451,4.56701078,2056.9,2056.7,9.72407]
[1742958579064,4.56701078,2056.9,2056.8,4.86192]
[1742958580510,4.56701078,2056.9,2056.7,4.86197]
[1742958580632,0.792,2056.8,2056.7,4.86197]
[1742958580965,0.90677381,2056.8,2056.6,4.86232]
[1742958583136,0.90677381,2056.8,2056.5,4.86256]
[1742958583370,3.24104141,2056.8,2056.5,4.86256]
[1742958585969,3.24104141,2056.8,2056.4,9.72562]
[1742958586181,3.24104141,2056.8,2056.4,4.86276]
[1742958586349,3.24104141,2056.8,2056.4,9.72546]
[1742958586549,3.24104141,2056.8,2056.4,4.8627]
[1742958587361,3.24104141,2056.8,2056.5,4.86257]
[1742958588875,1.30766532,2056.7,2056.5,4.86257]
[1742958589174,0.11325671,2056.6,2056.5,4.86257]
[1742958591476,0.11325671,2056.6,2056.4,4.86283]
[1742958591975,0.11325671,2056.6,2056.4,9.7256]
[1742958592276,0.11325671,2056.6,2056.4,24.2256]
[1742958592686,0.11325671,2056.6,2056.5,4.86263]
[1742958593799,0.11325671,2056.6,2056.4,9.72552]
[1742958593989,0.11325671,2056.6,2056.4,10.776442]
[1742958594888,0.11325671,2056.6,2056.4,10.776342]
[1742958595798,0.11325671,2056.6,2056.5,4.86263]
[1742958597081,5.09966532,2056.8,2056.5,4.86263]
[1742958597276,0.11318129,2056.6,2056.5,4.86263]
[1742958597605,5.09966532,2056.8,2056.5,7.3902522]
[1742958597780,0.11318129,2056.6,2056.5,7.3902522]
[1742958598101,5.09966532,2056.8,2056.5,7.3902522]
[1742958598305,0.11318129,2056.6,2056.5,4.86263]
[1742958598473,5.09966532,2056.8,2056.5,4.86263]
[1742958598668,0.11318129,2056.6,2056.5,4.86263]
[1742958598873,5.09966532,2056.8,2056.5,4.86263]
[1742958599304,0.11364749,2056.7,2056.5,4.86263]
[1742958599609,5.09966532,2056.8,2056.5,4.86263]
[1742958599908,0.11318129,2056.6,2056.5,4.86263]
[1742958600075,5.09966532,2056.8,2056.5,4.86263]
[1742958600277,0.11318129,2056.6,2056.5,4.86263]
[1742958600482,5.09966532,2056.8,2056.5,4.86263]
[1742958600701,5.09966532,2056.8,2056.3,4.86292]
[1742958600702,1.42084661,2056.6,2056.3,4.86292]
[1742958600998,1.30766532,2057.1,2056.6,4.86217]
[1742958601201,5.97466532,2057.0,2056.7,4.86206]
[1742958601401,5.97466532,2057.0,2056.6,4.86217]
[1742958601402,2.05876532,2056.9,2056.6,4.86217]
[1742958601704,2.05876532,2056.9,2056.6,9.72438]
[1742958601869,2.05876532,2056.9,2056.7,4.86206]
[1742958603013,1.30766532,2056.8,2056.6,4.86217]
[1742958604212,0.11408586,2056.7,2056.6,4.86217]
[1742958605612,1.30766532,2056.8,2056.6,4.86217]
[1742958605826,0.11408586,2056.7,2056.6,4.86217]
[1742958606607,1.30766532,2056.8,2056.6,4.86217]
[1742958606809,0.11408586,2056.7,2056.6,4.86217]
[1742958607212,1.30766532,2056.8,2056.6,4.86217]
[1742958607515,0.7511,2056.9,2056.6,4.86217]
[1742958607516,0.11408586,2056.7,2056.6,4.86217]
[1742958607683,0.11408586,2056.7,2056.6,5.83465]
[1742958608082,2.05876532,2056.9,2056.6,10.69692]
[1742958608285,0.11477833,2056.8,2056.6,9.72444]
[1742958608982,0.11477833,2056.8,2056.7,4.86215]
[1742958609422,4.666,2056.8,2056.7,4.86215]
[1742958609621,4.7805331,2056.8,2056.7,4.86215]
[1742958610009,0.1145331,2056.8,2056.7,4.86215]
[1742958610323,4.7805331,2056.8,2056.7,6.53296853]
[1742958610505,4.666,2056.8,2056.7,6.53296853]
[1742958610712,4.7805331,2056.8,2056.7,6.53296853]
[1742958612724,4.7805331,2056.8,2056.7,7.35546853]
[1742958613526,0.1145331,2056.8,2056.7,9.26175064]
[1742958613734,0.1145331,2056.8,2056.7,12.26174369]
[1742958614024,4.666,2057.1,2057.0,4.86144]
[1742958614221,4.666,2057.1,2057.0,6.402184]
[1742958617225,4.78270451,2057.1,2057.0,6.402184]
[1742958617924,6.09036983,2057.1,2057.0,4.86144]
[1742958618093,4.78270451,2057.1,2057.0,4.86144]
[1742958618800,6.09036983,2057.1,2056.8,4.8619]
[1742958619012,1.30766532,2056.9,2056.6,9.72451]
[1742958619200,1.30766532,2056.8,2056.6,4.86223]
[1742958619528,0.11878516,2056.7,2056.6,4.86223]
[1742958619695,1.42645048,2056.7,2056.5,4.86258]
[1742958619891,2.09506532,2056.7,2056.5,4.86258]
[1742958620090,4.78375301,2056.6,2056.5,4.86258]
[1742958620324,4.78375301,2056.6,2056.5,5.835107]
[1742958625544,4.78375301,2056.6,2056.5,6.19920206]
[1742958625744,4.78375301,2056.6,2056.5,0.36409506]
[1742958625903,5.59815301,2056.6,2056.5,0.36409506]
[1742958631352,5.71828642,2056.6,2056.5,0.36409506]
[1742958633559,5.71828642,2056.6,2056.4,4.86286]
[1742958633858,4.90388642,2056.6,2056.4,4.86286]
[1742958634073,4.90388642,2056.6,2056.3,4.86299]
[1742958634219,2.33499128,2056.5,2056.3,4.86299]
[1742958634552,0.23298836,2056.4,2056.3,4.86299]
[1742958634957,4.665,2056.6,2056.3,4.86299]
[1742958635155,0.23604655,2056.5,2056.3,4.86293]
[1742958635524,0.23604655,2056.5,2056.3,9.72585]
[1742958636370,0.23604655,2056.5,2056.4,0.3640197]
[1742958638269,7.14505161,2056.5,2056.4,0.3640197]
[1742958638732,12.00768161,2056.5,2056.4,0.3640197]
[1742958640143,12.00768161,2056.5,2055.9,5.2280497]
[1742958640468,2.33499128,2056.3,2055.9,5.2280497]
[1742958640889,0.23430709,2056.2,2055.9,5.2280497]
[1742958641187,4.665,2056.1,2055.9,5.2280497]
[1742958641487,4.665,2056.1,2055.9,4.86403]
[1742958641488,0.23338621,2056.0,2055.9,4.86403]
[1742958642400,0.23338621,2056.0,2055.8,5.2282297]
[1742958642699,0.23338621,2056.0,2055.8,6.31912467]
[1742958644087,1.5418401,2056.0,2055.8,6.31912467]
[1742958646793,1.5418401,2056.0,2055.9,0.3640197]
[1742958647582,5.3537401,2056.0,2055.9,0.3640197]
[1742958648281,5.3537401,2056.0,2055.8,0.3640197]
[1742958648458,1.30845389,2055.9,2055.8,0.3640197]
[1742958648962,1.53723805,2055.9,2055.8,0.3640197]
[1742958649690,1.53723805,2055.9,2055.6,0.3640197]
[1742958650391,1.30845389,2055.7,2055.6,0.3640197]
[1742958650571,1.53631673,2055.7,2055.6,0.3640197]
[1742958651398,1.53631673,2055.7,2055.2,0.3640197]
[1742958651599,1.30845389,2055.3,2055.2,0.3640197]
[1742958651804,1.53379393,2055.3,2055.2,0.3640197]
[1742958652204,0.22534004,2055.3,2055.2,0.3640197]
[1742958652409,1.53379393,2055.3,2055.2,0.3640197]
[1742958652720,1.53379393,2055.3,2055.0,5.2300797]
[1742958652884,2.56398471,2055.3,2055.0,5.2300797]
[1742958653409,1.04884004,2055.3,2055.0,0.3640197]
[1742958653613,1.04884004,2055.3,2055.0,10.0959997]
[1742958653614,0.22534004,2055.3,2055.0,10.0959997]
[1742958653818,0.22534004,2055.3,2055.0,6.31943967]
[1742958654507,0.22534004,2055.3,2055.0,5.95541997]
[1742958654908,0.22534004,2055.3,2055.0,1.08947997]
[1742958655080,3.17164467,2055.2,2054.8,19.36653]
[1742958655280,4.665,2055.1,2054.8,19.36653]
[1742958655479,4.88941818,2055.1,2054.8,4.86653]
[1742958656591,4.88941818,2055.1,2054.9,4.86641]
[1742958657226,0.833,2054.9,2054.8,0.3640197]
[1742958657535,3.833,2054.9,2054.8,0.3640197]
[1742958657687,4.05557005,2054.9,2054.8,0.3640197]
[1742958658717,4.05557005,2054.9,2054.3,19.36781]
[1742958658930,2.33864467,2054.7,2054.3,21.875273]
[1742958659084,4.666,2054.6,2054.3,21.875273]
[1742958659451,4.89005952,2054.6,2054.3,21.875273]
[1742958660837,4.89005952,2054.6,2054.3,21.875103]
[1742958660989,4.89005952,2054.6,2054.4,4.8675]
[1742958661332,4.89005952,2054.6,2054.3,12.242833]
[1742958661534,4.89005952,2054.6,2054.3,4.86764]
[1742958661694,4.89005952,2054.6,2054.4,14.5]
[1742958663132,5.72305952,2054.6,2054.4,14.5]
[1742958663316,2.33864467,2054.5,2054.4,14.5]
[1742958663515,2.33864467,2054.5,2054.2,4.86791]
[1742958663724,0.22359855,2054.5,2054.3,4.8677]
[1742958664218,0.22359855,2054.5,2054.3,19.3677]
[1742958664532,0.22359855,2054.5,2054.3,4.8677]
[1742958667304,0.22359855,2054.5,2054.2,24.23587]
[1742958667702,3.22359855,2054.5,2054.2,19.36791]
[1742958668705,3.22359855,2054.5,2054.2,4.86791]
[1742958669793,3.22359855,2054.5,2054.1,4.88826]
[1742958670027,3.22359855,2054.5,2054.1,4.88813]
[1742958672726,5.56224322,2054.5,2054.1,4.88813]
[1742958673134,5.56224322,2054.5,2054.2,4.86804]
[1742958673347,3.22359855,2054.5,2054.2,4.86804]
[1742958674417,3.22359855,2054.5,2054.1,4.88813]
[1742958674608,3.22359855,2054.5,2054.1,9.7563]
[1742958674820,3.22359855,2054.5,2054.2,4.86803]
[1742958676123,3.99438221,2054.5,2054.2,4.86804]
[1742958677146,3.99438221,2054.5,2054.1,5.2506395]
[1742958677298,0.8157,2054.4,2054.1,0.3825095]
[1742958677639,0.22065405,2054.3,2054.1,0.3825095]
[1742958677812,0.93523229,2054.3,2054.1,0.3825095]
[1742958678935,0.8157,2054.2,2054.1,0.3825095]
[1742958679239,1.03589294,2054.2,2054.1,0.02]
[1742958680036,0.22019294,2054.2,2054.1,0.02]
[1742958680248,0.8157,2054.4,2054.1,0.02]
[1742958680415,0.22065405,2054.3,2054.1,0.02]
[1742958680943,0.22065405,2054.3,2054.1,0.3825095]
[1742958684341,0.22065405,2054.3,2054.2,0.3625095]
[1742958686540,4.88765405,2054.3,2054.2,0.3625095]
[1742958686845,0.22065405,2054.3,2054.2,6.20328706]
[1742958687042,4.667,2054.3,2054.2,7.51346223]
[1742958687235,4.88765405,2054.3,2054.2,6.20328706]
[1742958687542,0.22065405,2054.3,2054.2,7.51346223]
[1742958687766,4.88765405,2054.3,2054.2,7.51346223]
[1742958688045,4.88599054,2054.3,2054.2,22.01346223]
[1742958688257,4.88599054,2054.3,2054.2,20.70328706]
[1742958690775,4.88599054,2054.3,2054.2,6.20328706]
[1742958694460,0.21899054,2054.3,2054.2,6.96608706]
[1742958694664,4.666,2055.0,2054.9,4.86641]
[1742958694874,0.18445293,2055.0,2054.9,4.86641]
[1742958695027,4.85045293,2055.0,2054.9,4.86641]
[1742958696960,4.85045293,2055.0,2054.9,5.2289195]
[1742958714474,4.85045293,2055.0,2054.9,6.20020058]
[1742958719470,4.85045293,2055.0,2054.9,5.2289195]
[1742958721685,6.93765377,2055.0,2054.9,0.3625095]
[1742958722885,5.62815293,2055.0,2054.9,0.3625095]
[1742958723913,0.18445293,2055.0,2054.9,5.2289195]
[1742958724206,4.662,2055.0,2054.9,6.23847445]
[1742958724509,4.84843764,2055.0,2054.9,6.23847445]
[1742958725008,0.18643764,2055.0,2054.9,9.3590933]
[1742958725214,0.18643764,2055.0,2054.9,9.95775509]
[1742958725518,4.662,2055.2,2055.1,5.64734]
[1742958725670,4.662,2055.2,2055.1,7.61145333]
[1742958726011,4.662,2055.2,2055.1,9.95067218]
[1742958726568,4.662,2055.2,2055.1,7.61145333]
[1742958727213,4.662,2055.2,2055.1,7.19256283]
[1742958729009,4.662,2055.2,2055.1,7.97396283]
[1742958729732,31.19591885,2055.8,2055.5,4.86492]
[1742958730033,4.662,2055.7,2055.6,4.8647]
[1742958730588,4.662,2055.7,2055.5,4.86494]
[1742958731029,4.662,2055.7,2055.5,4.8649]
[1742958731238,31.19591885,2055.8,2055.6,4.86475]
[1742958731539,4.661,2055.7,2055.6,4.86475]
[1742958731721,4.661,2055.7,2055.6,0.3625095]
[1742958732529,4.661,2055.7,2055.6,5.2272595]
[1742958733542,4.661,2055.7,2055.6,0.3625095]
[1742958733836,4.661,2055.7,2055.6,5.2272595]
[1742958734134,4.8531639,2055.7,2055.6,5.2272595]
[1742958735206,5.6460639,2055.7,2055.6,0.3625095]
[1742958735429,8.6460639,2055.7,2055.6,0.3625095]
[1742958736505,3.0,2055.6,2055.3,0.3625095]
[1742958736699,3.32372077,2055.5,2055.3,0.3625095]
[1742958738005,3.32372077,2055.5,2055.2,4.86569]
[1742958738736,3.32372077,2055.5,2055.2,4.8656]
[1742958740938,3.32372077,2055.5,2055.3,0.36440316]
[1742958741946,3.32372077,2055.5,2055.2,4.8656]
[1742958744143,3.32372077,2055.5,2055.1,4.86591]
[1742958744347,3.32372077,2055.5,2055.2,4.86567]
[1742958744544,3.32372077,2055.5,2055.1,4.86588]
[1742958744751,3.32372077,2055.5,2055.1,9.73163]
[1742958744951,3.32372077,2055.5,2055.3,0.36447045]
[1742958745642,3.32372077,2055.5,2055.3,35.36447045]
[1742958746247,3.7844,2055.4,2055.3,35.36447045]
[1742958746625,3.97403638,2055.4,2055.3,35.36447045]
[1742958746954,3.97403638,2055.4,2055.3,35.0]
[1742958749132,4.33214372,2055.4,2055.3,35.0]
[1742958749517,8.83926638,2055.4,2055.3,35.0]
[1742958750025,3.97403638,2055.4,2055.3,35.0]
[1742958750623,3.18963638,2055.4,2055.3,35.0]
[1742958752832,3.18963638,2055.4,2055.3,35.36456554]
[1742958754263,0.18963638,2055.4,2055.3,41.02182554]
[1742958754438,0.18963638,2055.4,2055.3,45.61055709]
[1742958758055,28.079,2055.8,2055.7,5.65632]
[1742958758364,32.738,2055.8,2055.7,5.65632]
[1742958758657,4.659,2055.8,2055.7,5.65632]
[1742958759332,4.659,2055.8,2055.7,6.02088554]
[1742958759533,4.659,2055.8,2055.7,7.59594009]
[1742958760595,2.33921885,2056.2,2055.9,4.86388]
[1742958760923,4.659,2056.1,2056.0,4.86379]
[1742958761694,4.85082024,2056.1,2055.9,4.86388]
[1742958762892,4.85082024,2056.1,2056.0,0.36456554]
[1742958763582,0.19182024,2056.1,2056.0,5.22837554]
[1742958763751,4.658,2056.1,2056.0,7.01710109]
[1742958763953,0.19229229,2056.1,2056.0,2.15329109]
[1742958764254,3.0,2056.5,2056.2,4.86313]
[1742958764563,4.658,2056.4,2056.2,5.56477211]